{"text_format":"3","workbook":"xlsx","n_sheets":7,"sheets":["登记表","手动填报登记表","指标说明","指标说明-人才对象分类","指标说明-国标行业分类","指标说明-专业领域","指标说明-其它"],"not_rendered":{"defined_names":202},"read":"whole","date_system":"1900"}

{"sheet":"登记表","index":0,"n_rows":17,"n_cols":42,"rows_kept":17,"merged":[[0,0,0,1],[1,0,1,41],[2,0,3,0],[2,1,3,3],[2,4,3,4],[2,5,2,10],[2,11,3,11],[2,12,3,12],[2,13,3,13],[2,14,3,14],[2,15,3,15],[2,16,3,16],[2,17,3,17],[2,18,3,18],[2,19,3,19],[2,20,3,20],[2,21,3,21],[2,22,3,22],[2,23,3,24],[2,25,3,25],[2,26,3,26],[2,27,3,27],[2,28,3,28],[2,29,3,29],[2,30,3,30],[2,31,3,31],[2,32,3,32],[2,33,3,33],[2,34,3,34],[2,35,3,35],[2,36,3,36],[2,37,3,37],[2,38,3,38],[2,39,3,39],[2,40,3,40],[2,41,3,41],[14,0,14,1],[14,2,14,41],[15,0,15,1],[15,2,15,41],[16,0,16,1],[16,2,16,41]]}
["附件4"]
["科技人才登记表"]
["序号","人才对象类别",null,null,"人才类别","所属行业",{"$nulls":5},"姓名","性别","证件及号码","出生年月","政治面貌","婚姻状况","子女状况","户籍地","现居住地","毕业院校","学历及学位","专业","专业领域",null,"工作单位（全称）","行政职务","专业技术职称（职业资格）","社会职务","在渝时长","联系电话","电子邮箱","通讯地址","所属技术团队","技术团队成员","科技成果","所获荣誉称号","获奖情况(省部级及以上）","已享受区级及以上的政策","诉求","人事老总及相关工作人员姓名、电话、微信、qq","备注"]
[{"$nulls":5},"门类","大类","中类","小类","是否高技术产业","是否科技服务业"]
[{"$f":"ROW()-3","v":2},{"$nulls":8},{"$f":"IF(COUNTIF(I5,\"*G*\")=1,\"是\",\"\")","v":""},{"$f":"IF(COUNTIF(I5,\"*F*\")=1,\"是\",\"\")","v":""},{"$nulls":3},{"$f":"DATE(MID(N5,7,4),MID(N5,11,2),MID(N5,13,2))","v":{"$error":"#VALUE!"}}]
[{"$f":"ROW()-3","v":3},{"$nulls":8},{"$f":"IF(COUNTIF(I6,\"*G*\")=1,\"是\",\"\")","v":""},{"$f":"IF(COUNTIF(I6,\"*F*\")=1,\"是\",\"\")","v":""},{"$nulls":3},{"$f":"DATE(MID(N6,7,4),MID(N6,11,2),MID(N6,13,2))","v":{"$error":"#VALUE!"}}]
[4,{"$nulls":8},"","",{"$nulls":3},{"$error":"#VALUE!"}]
[5,{"$nulls":8},"","",{"$nulls":3},{"$error":"#VALUE!"}]
[6,{"$nulls":8},"","",{"$nulls":3},{"$error":"#VALUE!"}]
[7,{"$nulls":8},"","",{"$nulls":3},{"$error":"#VALUE!"}]
[8,{"$nulls":8},"","",{"$nulls":3},{"$error":"#VALUE!"}]
[9,{"$nulls":8},"","",{"$nulls":3},{"$error":"#VALUE!"}]
[10,{"$nulls":8},"","",{"$nulls":3},{"$error":"#VALUE!"}]
[11,{"$nulls":8},"","",{"$nulls":3},{"$error":"#VALUE!"}]
["填表说明：",null,"1.填报对象：项目第一申请人及以副高以上的项目参与人。"]
[null,null,"2.“人才对象类别”“人才类别”“所属行业”“性别”“政治面貌”“婚姻状况”“专业领域”“行政职务”为下拉菜单选项填列，如无法显示下拉菜单请使用“手动填报登记表”，其各项指标根据说明手动填报，不再填报“登记表”。"]
[null,null,"3.详细指标说明附后。"]

{"sheet":"手动填报登记表","index":1,"n_rows":16,"n_cols":41,"rows_kept":16,"merged":[[0,0,0,40],[1,0,2,0],[1,1,2,2],[1,3,2,3],[1,4,1,9],[1,10,2,10],[1,11,2,11],[1,12,2,12],[1,13,2,13],[1,14,2,14],[1,15,2,15],[1,16,2,16],[1,17,2,17],[1,18,2,18],[1,19,2,19],[1,20,2,20],[1,21,2,21],[1,22,2,23],[1,24,2,24],[1,25,2,25],[1,26,2,26],[1,27,2,27],[1,28,2,28],[1,29,2,29],[1,30,2,30],[1,31,2,31],[1,32,2,32],[1,33,2,33],[1,34,2,34],[1,35,2,35],[1,36,2,36],[1,37,2,37],[1,38,2,38],[1,39,2,39],[1,40,2,40],[13,0,13,1],[13,2,13,40],[14,0,14,1],[14,2,14,40],[15,0,15,1],[15,2,15,40]]}
["科技人才登记表"]
["序号","人才对象类别",null,"人才类别","所属行业",{"$nulls":5},"姓名","性别","证件及号码","出生年月","政治面貌","婚姻状况","子女状况","户籍地","现居住地","毕业院校","学历及学位","专业","专业领域",null,"工作单位（全称）","行政职务","专业技术职称（职业资格）","社会职务","在渝时长","联系电话","电子邮箱","通讯地址","所属技术团队","技术团队成员","科技成果","所获荣誉称号","获奖情况(省部级及以上）","已享受区级及以上的政策","诉求","人事老总及相关工作人员姓名、电话、微信、qq","备注"]
[{"$nulls":4},"门类","大类","中类","小类","是否高技术产业","是否科技服务业"]
[{"$f":"ROW()-3","v":1},{"$nulls":21},"zy870图书馆、情报与文献学","zy870.99 图书馆、情报与文献学其他",null,"副主任科员"]
[{"$f":"ROW()-3","v":2}]
[3]
[4]
[5]
[6]
[7]
[8]
[9]
[10]
["填表说明：",null,"1.填报对象：项目第一申请人及以副高以上的项目参与人。"]
[null,null,"2.“人才对象类别”“人才类别”“所属行业”“性别”“政治面貌”“婚姻状况”“专业领域”“行政职务”为下拉菜单选项填列，如无法显示下拉菜单请使用“手动填报登记表”，其各项指标根据说明手动填报，不再填报“登记表”。"]
[null,null,"3.详细指标说明附后。"]

{"sheet":"指标说明","index":2,"n_rows":28,"n_cols":4,"rows_kept":28,"merged":[[0,0,0,3],[2,0,6,0],[2,3,6,3],[7,0,11,0],[7,3,11,3],[12,0,15,0],[12,2,13,2],[12,3,15,3],[14,2,15,2],[16,0,16,1],[17,0,17,1],[18,0,18,1],[19,0,19,1],[20,0,20,1],[21,0,21,1],[22,0,22,1],[23,0,23,1],[24,0,24,1],[25,0,25,1],[26,0,26,1],[27,0,27,1]]}
["指标说明"]
["指标名称","指标分类","解释","来源"]
["人才对象类别","第一类","1.中国科学院院士;2.中国工程院院士。","《重庆市引进高层次人才若干优惠政策规定》"]
[null,"第二类","1.国家引进海外高层次人才计划人选；2.国家自然科学奖、国家技术发明奖、国家科学技术进步奖一等奖获得者前三名；3.国家“863”、“973”重大科研项目主持人。"]
[null,"第三类","1.国家级重点学科、重点实验室、工程技术研究中心学术技术带头人；2.国家自然科学奖、国家技术发明奖、国家科学技术进步奖二等奖获得者前三名；3.“新世纪百千万人才工程”国家级人选；4.国家杰出青年科学基金获得者；5.国家有突出贡献中青年专家；6.卫生部有突出贡献中青年专家；有突出贡献中青年专家；7.“长江学者计划”特聘教授；8.“中华技能大奖”获得者。"]
[null,"第四类","1.在海外取得博士学位，并在海外知名高等院校、科研机构、金融机构、世界500强企业等单位具备两年以上工作经历的海外高层次人才；2.国（境）外经济金融、科教文卫知名专家。"]
[null,"第五类","其他（请自己填写清楚自己的情况）"]
["人才类别","基础研究人才","是指在科技活动中主要从事基础科学或应用基础科学的学术研究，承担发现自然界物质运动规律，揭示自然现象内在联系和客观规律，引领知识创新重任的人才。（主要是以发表科研论文、申请专利等为研究成果的人才）","《重庆市科技人才分类评价实施方案》"]
[null,"应用研究和技术开发人才","是指在科技活动中探索基础研究所获得成果在实践中应用的可能性，或者针对某些亟待解决的特定问题和实用目标，主要从事提供新系统、新产品、新品种、新结构、新技术、新方法、新工艺、新流程、新材料等研究活动的人才。（主要是推动科技成果转化及产生经济效益的人才）"]
[null,"社会公益研究人才","是指实际从事社会公益科技研究领域，具有较高的特定能力，能进行创造性劳动并对社会进步和经济发展做出较大贡献的人才。（主要是推动科技改革创新及从事科普工作的人才）"]
[null,"科技管理服务人才","是指在科技活动中专职从事科技规划、实施科研项目、组织科技活动等科技管理工作，提供技术服务、成果转化服务、知识产权服务、信息服务、金融服务等科技专业化服务的人才。（主要是从事科学技术服务及技术经理人等人才）"]
[null,"实验技术人才","是指在科技活动中将理论知识与实践相结合，专职从事实验教学科研任务与大型设备管理与开发，承担实验室建设与管理的人才。（主要是从事实验平台建设与运营管理的人才）"]
["所属行业","20门类","国民经济行业所涉及的所有门类和大类","中华人民共和国国家标准GB/T4754-2017、高技术产业（制造业）分类（2017）、国家科技服务业统计分类（2018）"]
[null,"97大类"]
[null,"91中类（部分）","只包含高技术产业（制造业）和科技服务业统计分类"]
[null,"162小类（部分）"]
["证件及号码",null,"填写身份证或者护照及号码"]
["子女状况",null,"填写子女性别和就读、工作情况"]
["专业领域",null,"人员专业学科领域分类与代码"]
["行政职务",null,"1.领导职务层次分为:国家级正职、国家级副职、省部级正职、省部级副职、厅局级正职、厅局级副职、县处级正职、县处级副职、乡科级正职、乡科级副职。2.综合管理类的非领导职务分为:巡视员、副巡视员、调研员、副调研员、主任科员、副主任科员、科员、办事员。","国家公务员法"]
["社会职务",null,"在自己的本职工作之外，兼任的其他组织职务，如学会的、协会的等群众组织"]
["在渝时长",null,"以在渝工作时间计算"]
["所属技术团队",null,"填写自己带领的技术团队或者所属的技术团队（全称）"]
["技术团队成员",null,"填写自己带领的技术团队成员或者所属的技术团队的带头人和其它成员（标注团队职务）"]
["科技成果",null,"包含论文、专利、新产品等"]
["所获荣誉称号",null,"包含国家级、市级、区级各类称号"]
["获奖情况",null,"1.国家级表彰奖励是指党中央、国务院授予的奖项或荣誉称号；省部级表彰奖励是指省（自治区、直辖市）党委、政府以及国家部委授予的奖项或荣誉称号；市级表彰奖励是指市委、市政府授予的奖项或荣誉称号。2.省部级。部级奖指以中央（国务院）各部委名义颁发的荣誉称号。省级奖指以省、自治区、直辖市政府名义颁发的奖项或教育系统颁发的代表全省教育的最高奖项等。3.市厅级。市厅级奖指省（部）级所属局、厅、市级政府颁发的奖项。"]
["已享受区级及以上的政策",null,"享受的资金支持和生活上各类支持。"]

{"sheet":"指标说明-人才对象分类","index":3,"n_rows":10,"n_cols":5,"rows_kept":10,"merged":[[0,0,0,4]]}
["根据《重庆市引进高层次人才若干优惠政策规定》中的人才对象分类"]
["第一类","第二类","第三类","第四类","第五类"]
["1.中国科学院院士","1.国家引进海外高层次人才计划人选；","1.国家级重点学科、重点实验室、工程技术研究中心学术技术带头人；","1.在海外取得博士学位，并在海外知名高等院校、科研机构、金融机构、世界500强企业等单位具备两年以上工作经历的海外高层次人才；","其他（请自己填写清楚自己的情况）"]
["2.中国工程院院士","2.国家自然科学奖、国家技术发明奖、国家科学技术进步奖一等奖获得者前三名；","2.国家自然科学奖、国家技术发明奖、国家科学技术进步奖二等奖获得者前三名；","2.国（境）外经济金融、科教文卫知名专家。"]
[null,"3.国家“863”、“973”重大科研项目主持人。","3.“新世纪百千万人才工程”国家级人选；"]
[null,null,"4.国家杰出青年科学基金获得者；"]
[null,null,"5.国家有突出贡献中青年专家；"]
[null,null,"6.卫生部有突出贡献中青年专家；"]
[null,null,"7.“长江学者计划”特聘教授；"]
[null,null,"8.“中华技能大奖”获得者。"]

{"sheet":"指标说明-国标行业分类","index":4,"n_rows":52,"n_cols":91,"rows_kept":52}
["A农、林、牧、渔业","B采矿业","Z制造业","D电力、热力、燃气及水生产和供应业","E建筑业","F批发和零售业","G交通运输、仓储和邮政业","H住宿和餐饮业","I信息传输、软件和信息技术服务业","J金融业","K房地产业","L租赁和商务服务业","M科学研究和技术服务业","N水利、环境和公共设施管理业","O居民服务、修理和其他服务业","P教育","Q卫生和社会工作","W文化、体育和娱乐业","S公共管理、社会保障和社会组织","T国际组织"]
["A01农业","B06煤炭开采和洗选业","Z13农副食品加工业","D44电力、热力生产和供应业","E47房屋建筑业","F51批发业","G53铁路运输业","H61住宿业","I63电信、广播电视和卫星传输服务","J66货币金融服务","K70房地产业","L71租赁业","M73科学研究和试验发展服务","N76水利管理业","O80居民服务业","P83教育","Q84卫生","W86新闻和出版业","S91中国共产党机关","T97国际组织"]
["A02林业","B07石油和天然气开采业","Z14食品制造业","D45燃气生产和供应业","E48土木工程建筑业","F52零售业","G54道路运输业","H62餐饮业","I64互联网和相关服务","J67资本市场服务",null,"L72商务服务业","M74专业化技术服务","N77生态保护和环境治理业","O81机动车、电子产品和日用产品修理业",null,"Q85社会工作","W87广播、电视、电影和录音制作业","S92国家机构"]
["A03畜牧业","B08黑色金属矿采选业","Z15酒、饮料和精制茶制造业","D46水的生产和供应业","E49建筑安装业",null,"G55水上运输业",null,"I65软件和信息技术服务业","J68保险业",null,null,"M75科技推广及相关服务","N78公共设施管理业","O82其他服务业",null,null,"W88文化艺术业","S93人民政协、民主党派"]
["A04渔业","B09有色金属矿采选业","Z16烟草制品业",null,"E50建筑装饰、装修和其他建筑业",null,"G56航空运输业",null,null,"J69其他金融业",{"$nulls":3},"N79土地管理业",{"$nulls":3},"W89体育","S94社会保障"]
["A05农、林、牧、渔专业及辅助性活动","B10非金属矿采选业","Z17纺织业",{"$nulls":3},"G57管道运输业",{"$nulls":10},"W90娱乐业","S95群众团体、社会团体和其他成员组织"]
[null,"B11开采专业及辅助性活动","Z18纺织服装、服饰业",{"$nulls":3},"G58多式联运和运输代理业",{"$nulls":11},"S96基层群众自治组织"]
[null,"B12其他采矿业","Z19皮革、毛皮、羽毛及其制品和制鞋业",{"$nulls":3},"G59装卸搬运和仓储业"]
[null,null,"Z20木材加工和木、竹、藤、棕、草制品业",{"$nulls":3},"G60邮政业"]
[null,null,"Z21家具制造业"]
[null,null,"Z22造纸和纸制品业"]
[null,null,"Z23印刷和记录媒介复制业"]
[null,null,"Z24文教、工美、体育和娱乐用品制造业"]
[null,null,"Z25石油、煤炭及其他燃料加工业"]
[null,null,"Z26化学原料和化学制品制造业"]
[null,null,"Z27医药制造业"]
[null,null,"Z28化学纤维制造业"]
[null,null,"Z29橡胶和塑料制品业"]
[null,null,"Z30非金属矿物制品业"]
[null,null,"Z31黑色金属冶炼和压延加工业"]
[null,null,"Z32有色金属冶炼和压延加工业"]
[null,null,"Z33金属制品业"]
[null,null,"Z34通用设备制造业"]
[null,null,"Z35专用设备制造业"]
[null,null,"Z36汽车制造业"]
[null,null,"Z37铁路、船舶、航空航天和其他运输设备制造业"]
[null,null,"Z38电气机械和器材制造业"]
[null,null,"Z39计算机、通信和其他电子设备制造业"]
[null,null,"Z40仪器仪表制造业"]
[null,null,"Z41其他制造业"]
[null,null,"Z42废弃资源综合利用业"]
[null,null,"Z43金属制品、机械和设备修理业"]
["Z26化学原料和化学制品制造业","Z27医药制造业","Z34通用设备制造业","Z35专用设备制造业","Z37铁路、船舶、航空航天和其他运输设备制造业","Z38电气机械和器材制造业","Z39计算机、通信和其他电子设备制造业","Z40仪器仪表制造业","Z43金属制品、机械和设备修理业","I63电信、广播电视和卫星传输服务","I64互联网和相关服务","I65软件和信息技术服务业","J66货币金融服务","J67资本市场服务","J68保险业","J69其他金融业","L71租赁业","L72商务服务业","M73科学研究和试验发展服务","M74专业化技术服务","M75科技推广及相关服务","P83教育","W86新闻和出版业","W88文化艺术业","S92国家机构","S95群众团体、社会团体和其他成员组织"]
["Z266专用化学产品制造","Z271化学药品原料药制造","Z347文化、办公用机械制造","Z356电子和电工机械专用设备制造","Z374航空、航天器及设备制造","Z383电线、电缆、光缆及电工器材制造","Z391计算机制造","Z401通用仪器仪表制造","Z434铁路、船舶、航空航天等运输设备修理","I631电信","I641互联网接入及相关服务","I651软件开发","J662货币银行科技服务","J676资本投资科技服务","J682财产保险科技服务","J691金融信托与管理科技服务","L711机械设备经营租赁","L721科技企业管理服务","M731自然科学研究和试验发展","M741气象服务","M751技术推广服务","P834普通高校科技教育服务","W862科技出版服务","W883图书馆与档案馆","S922国家行政机构","S952社会团体"]
[null,"Z272化学药品制剂制造",null,"Z358医疗仪器设备及器械制造",null,"Z384电池制造","Z392通信设备制造","Z402专用仪器仪表制造",null,"I632广播电视传输服务","I642互联网信息科技服务","I652集成电路设计","J663非货币银行服务",null,"J685保险中介服务","J692控股公司科技服务",null,"L723法律服务","M732工程和技术研究和试验发展","M742地震服务","M752知识产权服务",null,null,"W885博物馆科普服务"]
[null,"Z273中药饮片加工",{"$nulls":4},"Z393广播电视设备制造","Z404光学仪器制造",null,"I633卫星传输科技服务","I643互联网平台","I653信息系统集成和物联网技术服务","J664银行理财科技服务",null,"J686保险资产管理科技服务","J693非金融机构支付科技服务",null,"L724咨询与调查","M733农业科学研究和试验发展","M743海洋服务","M753科技中介服务"]
[null,"Z274中成药生产",{"$nulls":4},"Z394雷达及配套设备制造","Z409其他仪器仪表制造业",null,null,"I644互联网安全服务","I654运行维护服务",null,null,"J689其他保险科技服务","J695金融资产管理科技服务",null,"L725广告科技服务","M734医学研究和试验发展","M744测绘地理信息服务","M754创业空间服务"]
[null,"Z275兽用药品制造",{"$nulls":4},"Z395非专业视听设备制造",{"$nulls":3},"I645互联网数据服务","I655信息处理和存储支持服务",{"$nulls":3},"J699其他未列明科技金融服务",null,"L726人力资源服务","M735社会人文科学研究","M745质检技术服务","M759其他科技推广服务业"]
[null,"Z276生物药品制品制造",{"$nulls":4},"Z396智能消费设备制造",{"$nulls":3},"I649其他互联网服务","I656信息技术咨询服务",{"$nulls":5},"L728会议、展览及相关服务",null,"M746环境与生态监测检测服务"]
[null,"Z277卫生材料及医药用品制造",{"$nulls":4},"Z397电子器件制造",{"$nulls":4},"I659其他信息技术服务业",{"$nulls":5},"L729其他商务服务业",null,"M747地质勘查"]
[null,"Z278药用辅料及包装材料制造",{"$nulls":4},"Z398电子元件及电子专用材料制造",{"$nulls":12},"M748工程技术与设计服务"]
[{"$nulls":6},"Z399其他电子设备制造",{"$nulls":12},"M749工业与专业设计及其他专业技术服务"]
["Z266专用化学产品制造","Z271化学药品原料药制造","Z272化学药品制剂制造","Z273中药饮片加工","Z274中成药生产","Z275兽用药品制造","Z276生物药品制品制造","Z277卫生材料及医药用品制造","Z278药用辅料及包装材料制造","Z347文化、办公用机械制造","Z356电子和电工机械专用设备制造","Z358医疗仪器设备及器械制造","Z374航空、航天器及设备制造","Z383电线、电缆、光缆及电工器材制造","Z384电池制造","Z391计算机制造","Z392通信设备制造","Z393广播电视设备制造","Z394雷达及配套设备制造","Z395非专业视听设备制造","Z396智能消费设备制造","Z397电子器件制造","Z398电子元件及电子专用材料制造","Z399其他电子设备制造","Z401通用仪器仪表制造","Z402专用仪器仪表制造","Z404光学仪器制造","Z409其他仪器仪表制造业","Z434铁路、船舶、航空航天等运输设备修理","I631电信","I632广播电视传输服务","I633卫星传输科技服务","I641互联网接入及相关服务","I642互联网信息科技服务","I643互联网平台","I644互联网安全服务","I645互联网数据服务","I649其他互联网服务","I651软件开发","I652集成电路设计","I653信息系统集成和物联网技术服务","I654运行维护服务","I655信息处理和存储支持服务","I656信息技术咨询服务","I659其他信息技术服务业","J662货币银行科技服务","J663非货币银行服务","J664银行理财科技服务","J676资本投资科技服务","J682财产保险科技服务","J685保险中介服务","J686保险资产管理科技服务","J689其他保险科技服务","J691金融信托与管理科技服务","J692控股公司科技服务","J693非金融机构支付科技服务","J695金融资产管理科技服务","J699其他未列明科技金融服务","L711机械设备经营租赁","L721科技企业管理服务","L723法律服务","L724咨询与调查","L725广告科技服务","L726人力资源服务","L728会议、展览及相关服务","L729其他商务服务业","M731自然科学研究和试验发展","M732工程和技术研究和试验发展","M733农业科学研究和试验发展","M734医学研究和试验发展","M735社会人文科学研究","M741气象服务","M742地震服务","M743海洋服务","M744测绘地理信息服务","M745质检技术服务","M746环境与生态监测检测服务","M747地质勘查","M748工程技术与设计服务","M749工业与专业设计及其他专业技术服务","M751技术推广服务","M752知识产权服务","M753科技中介服务","M754创业空间服务","M759其他科技推广服务业","P834普通高校科技教育服务","W862科技出版服务","W883图书馆与档案馆","W885博物馆科普服务","S922国家行政机构","S952社会团体"]
["Z2664文化用信息化学品制造G","Z2710化学药品原料药制造G","Z2720化学药品制剂制造G","Z2730中药饮片加工G","Z2740中成药生产G","Z2750兽用药品制造G","Z2761生物药品制造G","Z2770卫生材料及医药用品制造G","Z2780药用辅料及包装材料制造G","Z3474复印和胶印设备制造G","Z3562半导体器件专用设备制造G","Z3581医疗诊断、监护及治疗设备制造G","Z3741飞机制造G","Z3832光纤制造G","Z3841锂离子电池制造G","Z3911计算机整机制造G","Z3921通信系统设备制造G","Z3931广播电视节目制作及发射设备制造G","Z3940雷达及配套设备制造G","Z3951电视机制造G","Z3961可穿戴智能设备制造G","Z3971电子真空器件制造G","Z3981电阻电容电感元件制造G","Z3990其他电子设备制造G","Z4011工业自动控制系统装置制造G","Z4021环境监测专用仪器仪表制造G","Z4040光学仪器制造G","Z4090其他仪器仪表制造业G","Z4343航空航天器修理G","I6311固定电信科技服务F","I6321有线广播电视传输科技服务F","I6331广播电视卫星传输服务F","I6410互联网接入及相关服务F","I6421互联网搜索服务F","I6431互联网生产服务平台F","I6440互联网安全服务F","I6450互联网数据服务F","I6490其他互联网服务F","I6511基础软件开发F","I6520集成电路设计F","I6531信息系统集成服务F","I6540运行维护服务F","I6550信息处理和存储支持服务F","I6560信息技术咨询服务F","I6599其他未列明信息技术服务业F","J6621商业银行服务F","J6631融资租赁科技服务F","J6640银行理财科技服务F","J6760资本投资科技服务F","J6820财产保险科技服务F","J6853保险公估科技服务F","J6860保险资产管理科技服务F","J6890其他保险科技服务F","J6911信托公司F","J6920控股公司科技服务F","J6930非金融机构支付科技服务F","J6950金融资产管理科技服务F","J6999融资担保科技服务F","L7115医疗设备经营租赁F","L7211企业总部管理F","L7231科技法律服务F","L7241会计、审计及税务科技服务F","L7251互联网广告服务F","L7262职业中介科技服务F","L7281科技会展服务F","L7292包装科技服务F","M7310自然科学研究和试验发展F","M7320工程和技术研究和试验发展F","M7330农业科学研究和试验发展F","M7340医学研究和试验发展F","M7350社会人文科学研究F","M7410气象服务F","M7420地震服务F","M7431海洋气象服务F","M7441遥感测绘服务F","M7451检验检疫服务F","M7461环境保护监测F","M7471能源矿产地质勘查F","M7481工程管理服务F","M7491工业设计服务F","M7511农林牧渔技术推广服务F","M7520知识产权服务F","M7530科技中介服务F","M7540创业空间服务F","M7590其他科技推广服务业F","P8341普通高等教育F","W8621图书出版F","W8831图书馆科普服务F","W8850博物馆科普服务F","S9221科学技术政府管理服务F","S9521专业性团体F"]
["Z2665医学生产用信息化学品制造G",{"$nulls":5},"Z2762基因工程药物和疫苗制造G",null,null,"Z3475计算器及货币专用设备制造G","Z3563电子元器件与机电组件设备制造G","Z3582口腔科用设备及器具制造G","Z3742航天器及运载火箭制造G","Z3833光缆制造G",null,"Z3912计算机零部件制造G","Z3922通信终端设备制造G","Z3932广播电视接收设备制造G",null,"Z3952音响设备制造G","Z3962智能车载设备制造G","Z3972半导体分立器件制造G","Z3982电子电路制造G",null,"Z4012电工仪器仪表制造G","Z4022运输设备及生产用计数仪表制造G",{"$nulls":3},"I6312移动电信科技服务F","I6322无线广播电视传输科技服务F","I6339其他卫星传输服务F",null,"I6422互联网游戏服务F","I6432互联网生活服务平台F",{"$nulls":3},"I6512支撑软件开发F",null,"I6532物联网技术服务F",{"$nulls":4},"J6622政策性银行服务F","J6632财务公司科技服务F",{"$nulls":6},"J6919其他金融信托与管理服务F",{"$nulls":4},"L7119其他机械与设备经营租赁F","L7212投资与资产管理F","L7232科技公证服务F","L7242市场调查科技服务F","L7259其他广告服务F",null,null,"L7293办公服务F",{"$nulls":7},"M7432海洋环境服务F","M7449其他测绘地理信息服务F","M7452检测服务F","M7462生态资源监测F","M7472固体矿产地质勘查F","M7482工程监理服务F","M7492专业设计服务F","M7512生物技术推广服务F",{"$nulls":4},"P8342成人高等教育F","W8622报纸出版F","W8832档案馆科普服务F",null,null,"S9522行业性团体F"]
[{"$nulls":10},"Z3569其他电子专用设备制造G","Z3583医疗实验室及医用消毒设备和器具制造G","Z3743航天相关设备制造G",null,null,"Z3913计算机外围设备制造G",null,"Z3933广播电视专用配件制造G",null,"Z3953影视录放设备制造G","Z3963智能无人飞行器制造G","Z3973集成电路制造G","Z3983敏感元件及传感器制造G",null,"Z4013绘图、计算及测量仪器制造G","Z4023导航、测绘、气象及海洋专用仪器制造G",{"$nulls":3},"I6319其他电信科技服务F",{"$nulls":3},"I6429互联网其他信息服务F","I6433互联网科技创新平台",{"$nulls":3},"I6513应用软件开发F",{"$nulls":6},"J6623信用合作社服务F","J6634汽车金融公司科技服务F",{"$nulls":12},"L7213资源与产权交易服务F","L7239其他科技法律服务F","L7245环保咨询F",{"$nulls":3},"L7294翻译服务F",{"$nulls":7},"M7439其他海洋服务F",null,"M7453计量服务F","M7463野生动物疫源疫病防控监测F","M7473水、二氧化碳等矿产地质勘查F","M7483工程勘察活动F",null,"M7513新材料技术推广服务F",{"$nulls":5},"W8623期刊出版F"]
[{"$nulls":11},"Z3584医疗、外科及兽医用器械制造G","Z3744航空相关设备制造G",null,null,"Z3914工业控制计算机及系统制造G",null,"Z3934专业音响设备制造G",null,null,"Z3969其他智能消费设备制造G","Z3974显示器件制造G","Z3984电声器件及零件制造G",null,"Z4014实验分析仪器制造G","Z4024农林牧渔专用仪器仪表制造G",{"$nulls":8},"I6434互联网公共服务平台F",{"$nulls":3},"I6519其他软件开发F",{"$nulls":6},"J6624农村资金互助社服务F","J6635小额贷款科技服务F",{"$nulls":12},"L7214单位后勤管理服务F",null,"L7249专业咨询科技服务F",{"$nulls":3},"L7295信用科技服务F",{"$nulls":9},"M7454标准化服务F",null,"M7474基础地质勘查F","M7484工程设计活动F",null,"M7514节能技术推广服务F",{"$nulls":5},"W8624音像制品出版F"]
[{"$nulls":11},"Z3585机械治疗及病房护理设备制造G","Z3749其他航空航天器制造G",null,null,"Z3915信息安全设备制造G",null,"Z3939应用电视设备及其他广播电视设备制造G",{"$nulls":3},"Z3975半导体照明器件制造G","Z3985电子专用材料制造G",null,"Z4015试验机制造G","Z4025地质勘探和地震专用仪器制造G",{"$nulls":8},"I6439其他互联网平台F",{"$nulls":10},"J6629其他货币银行服务F","J6636消费金融公司科技服务F",{"$nulls":12},"L7215农村集体经济组织管理F",{"$nulls":5},"L7296非融资担保科技服务F",{"$nulls":9},"M7455认证认可服务F",null,"M7475地质勘查技术服务F","M7485规划设计管理F",null,"M7515新能源技术推广服务F",{"$nulls":5},"W8625电子出版物出版F"]
[{"$nulls":11},"Z3586康复辅具制造G",{"$nulls":3},"Z3919其他计算机制造G",{"$nulls":5},"Z3976光电子器件制造G","Z3989其他电子元件制造G",null,"Z4016供应用仪器仪表制造G","Z4026教学专用仪器制造G",{"$nulls":20},"J6637网络借贷科技服务F",{"$nulls":12},"L7219其他组织管理服务F",{"$nulls":5},"L7297商务代理代办服务F",{"$nulls":9},"M7459其他质检技术服务F",null,null,"M7486土地规划服务F",null,"M7516环保技术推广服务F",{"$nulls":5},"W8626数字出版F"]
[{"$nulls":11},"Z3589其他医疗设备及器械制造G",{"$nulls":9},"Z3979其他电子器件制造G",null,null,"Z4019其他通用仪器制造G","Z4027核子及核辐射测量仪器制造G",{"$nulls":20},"J6639其他非货币银行科技服务F",{"$nulls":18},"L7298票务代理服务F",{"$nulls":14},"M7517三维（3D)打印技术推广服务F",{"$nulls":5},"W8629其他出版业F"]
[{"$nulls":25},"Z4028电子测量仪器制造G",{"$nulls":39},"L7299其他未列明商务服务业F",{"$nulls":14},"M7519其他技术推广服务F"]
[{"$nulls":25},"Z4029其他专用仪器制造G"]

{"sheet":"指标说明-专业领域","index":5,"n_rows":36,"n_cols":58,"rows_kept":36}
["zy110数学","zy120信息科学与系统科学","zy130力学","zy140物理学","zy150化学","zy160天文学","zy170地球科学","zy180生物学","zy210农学","zy220林学","zy230畜牧、兽医科学","zy240水产学","zy310基础医学","zy320临床医学","zy330预防医学与卫生学","zy340军事医学与特种医学","zy350药学","zy360中医学与中药学","zy410工程与技术科学基础学科","zy420测绘科学技术","zy430材料科学","zy440矿山工程技术","zy450冶金工程技术","zy460机械工程","zy470动力与电气工程","zy480能源科学技术","zy490核科学技术","zy510电子、通信与自动控制技术","zy520计算机科学技术","zy530化学工程","zy540纺织科学技术","zy550食品科学技术","zy560土木建筑工程","zy570水利工程","zy580交通运输工程","zy590航空、航天科学技术","zy610环境科学技术","zy620安全科学技术","zy630管理学","zy710马克思主义","zy720哲学","zy730宗教学","zy740语言学","zy750文学","zy760艺术学","zy770历史学","zy780考古学","zy790经济学","zy810政治学","zy820法学","zy830军事学","zy840社会学","zy850民族学","zy860新闻学与传播学","zy870图书馆、情报与文献学","zy880教育学","zy890体育科学","zy910统计学"]
["zy110.11 数学史","zy120.10 信息科学与系统科学科","zy130.10 基础力学","zy140.10 物理学史","zy150.10 化学史","zy160.10 天文学史","zy170.10 地球科学史","zy180.11 生物数学","zy210.10 农业史","zy220.10 林业基础学科","zy201.10 畜牧、兽医科学基础学科","zy240.10 水产学基础学科","zy310.11 医学生物化学","zy320.11 临床诊断学","zy330.11 营养学","zy340.10 军事医学","zy350.10 药物化学","zy360.10 中医学","zy410.10 工程数学","zy420.10 大地测量技术","zy430.10 材料科学基础学科","zy440.10 矿山地质学","zy450.10 冶金物理化学","zy460.10 机械史","zy470.10 工程热物理","zy480.10 能源化学","zy490.10 辐射物理与技术","zy510.10 电子技术","zy520.10 计算机科学技术基础学科","zy530.11 化学工程基础学科","zy540.10 纺织科学技术基础学科","zy550.10 食品科学技术基础学科","zy560.10 建筑史","zy570.10 水利工程基础学科","zy580.10 道路工程","zy590.10 航空、航天科学技术基础学科","zy610.10 环境科学技术基础学科","zy620.10 安全科学技术基础学科","zy630.10 管理思想史","zy710.10 马、恩、列、斯思想研究","zy720.10 马克思主义哲学","zy730.11 宗教学理论","zy740.10 普通语言学","zy750.11 文学理论","zy760.10 艺术心理学","zy770.10 史学史","zy780.10 考古理论","zy790.11 政治经济学","zy810.10 政治学理论","zy820.10 理论法学","zy830.10 军事理论","zy840.11 社会学史","zy850.10 民族问题理论","zy860.10 新闻理论","zy870.10 图书馆学","zy880.11 教育史","zy890.10 体育史","zy910.10 统计学史"]
["zy110.14 数理逻辑与数学基础","zy120.20 系统学","zy130.15 固体力学","zy140.15 理论物理学","zy150.15 无机化学","zy160.15 天体力学","zy170.15 大气科学","zy180.14 生物物理学","zy210.20 农业基础学科","zy220.15 林木遗传育种学","zy230.20 畜牧学","zy240.15 水产增殖学","zy310.14 人体解剖学","zy320.14 保健医学","zy330.14 毒理学","zy340.20 特物医学","zy350.20 生物药物学","zy360.20 民族医学","zy410.15 工程控制论","zy420.20 摄影测量与遥感技术","zy430.15 材料表面与界面","zy440.15 矿山测量","zy450.15 冶金反应工程","zy460.15 机械学","zy470.20 热工学","zy480.20 能源地理学","zy490.15 核探测技术与核电子学","zy510.20 光电子学与激光技术","zy520.20 人工智能","zy530.14 化工没理技术与仪器仪表","zy540.20 纺织材料","zy550.20 食品加工技术","zy560.15 土木建筑工程基础学科","zy570.15 水利工程测量","zy580.20 公路运输","zy590.15 航空器结构与设计","zy610.20 环境学","zy620.20 安全学","zy630.15 管理理论","zy710.20 毛泽东思想研究","zy720.15 自然辩证法","zy730.14 无神论","zy740.15 比较语言学","zy750.14 文艺美学","zy760.15 音乐","zy770.15 史学理论","zy780.20 考古学史","zy790.13 宏观经济学","zy810.20 政治制度","zy820.20 法律史学","zy830.15 军事史","zy840.14 社会学理论","zy850.20 民族史学","zy860.20 新闻史","zy870.20 文献学","zy880.14 教育学原理","zy890.15 体育理论","zy910.15 理论统计学"]
["zy110.17 数论","zy120.30 控制理论","zy130.20 振动与波","zy140.20 声学","zy150.20 有机化学","zy160.20 天体物理学","zy170.20 固体地球物理学","zy180.17 生物化学","zy210.30 农艺学","zy220.20 森林培育学","zy230.30 兽医学","zy240.20 水产养殖学","zy310.17 医学细胞生物学","zy320.17 理疗学","zy330.17 消毒学","zy340.99 军事医学一特种医学其他学科","zy350.25 微生物药物学","zy360.30 中西医结合医学","zy410.20 工程力学","zy420.30 地图制图技术","zy430.20 材料失效与保护","zy440.20 矿山设计","zy450.20 冶金原料与预处理","zy460.20 机械设计","zy470.30 动力机械工程","zy480.30 能源计算与测量","zy490.20 放射性计量学","zy510.30 半导体技术","zy520.30 计算机系统结构","zy530.17 化工传递过程","zy540.30 纤维制造技术","zy550.30 食品包装与储藏","zy560.20 土木建筑工程测量","zy570.20 水工材料","zy580.30 铁路运输","zy590.20 航天器结构与设计","zy610.30 环境工程学","zy620.30 安全工程","zy630.20 管理心理学","zy710.30 马克思主义思想史","zy720.20 中国哲学史","zy730.17 原始宗教","zy740.20 语言地理学","zy750.17 文学批评","zy760.20 戏剧","zy770.20 历史文献学","zy780.30 考古技术","zy790.15 微观经济学","zy810.30 行政学","zy820.30 部门法学","zy830.20 军事心理学","zy840.17 社会学方法","zy850.30 蒙古学","zy860.30 新闻业务","zy870.30 情报学","zy880.17 教学论","zy890.20 运动生物力学","zy910.20 统计法学"]
["zy110.21 代数学","zy120.40 系统评估与何行性分析","zy130.25 流体力学","zy140.25 热学","zy150.25 分析化学","zy160.25 天体化学","zy170.25 空间物理学","zy180.21 细胞生物学","zy210.40 园艺学","zy220.25 森林经理学","zy230.99 畜牧、兽医科学其他学科","zy240.25 水产饲料学","zy310.21 人体生理学","zy320.21 麻醉学","zy330.21 流行病学",null,"zy350.30 放射性药物学","zy360.40 中药学","zy410.25 工程物理学","zy420.40 工程没理技术","zy430.25 材料检测与分析技术","zy440.25 矿山地面工程","zy450.25 冶金热能工程","zy460.25 机械制造工艺与设备","zy470.40 电气工程","zy480.40 储能技术","zy490.25 核仪器、仪表","zy510.40 信息处理技术","zy520.40 计算机软件","zy530.21 化学分离工程","zy540.40 纺织技术","zy550.40 食品机械","zy560.25 建筑材料","zy570.25 水工结构","zy580.40 水路运输","zy590.25 航空、航天推进系统","zy610.99 环境科学技术其他学科","zy620.40 职业卫生工程","zy630.25 管理计量学","zy710.40 科学社会主义","zy720.25 东方哲学史","zy730.21 古代宗教","zy740.25 社会语言学","zy750.21 比较文学","zy760.25 戏曲","zy770.25 中国通史","zy780.40 中国考古","zy790.17 比较经济学","zy810.40 国际政治学","zy820.40 国际法学","zy830.30 战役学","zy840.21 实验社会学","zy850.40 藏学","zy860.40 新闻事业经营管理","zy870.40 档案学","zy880.21 德育原理","zy890.25 运动生理学","zy910.25 描述统计学"]
["zy110.24 代数几何学","zy120.50 系统工程方法论","zy130.30 流变学","zy140.30 光学","zy150.30 物理化学","zy160.30 天体测量学","zy170.30 地球化学","zy180.24 生理学","zy210.50 土壤学","zy220.30 森林保护学",null,"zy240.30 水产保护学","zy310.24 人体组织胚胎学","zy320.24 内科学","zy330.24 传染病学",null,"zy350.35 药剂学","zy360.99 中医学与中药学其他学科","zy410.30 工程地质学","zy420.50 海洋测绘","zy430.30 材料实验","zy440.30 井巷工程","zy450.30 冶金技术","zy460.30 刀具技术","zy470.99 动力与电气工程其他学科","zy480.50 节能技术","zy490.30 核材料与工艺技术","zy510.50 通信技术","zy520.50 计算机工程","zy530.24 化学反应工程","zy540.50 染整技术","zy550.50 食品加工的副产品加工与利用","zy560.30 工程结构","zy570.30 水力机械","zy580.50 船舶、舰舶工程","zy590.30 飞行器仪表、设备",null,"zy620.50 安全管理工程","zy630.30 部门经济管理","zy710.50 社会主义运动史","zy720.30 西方哲学史","zy730.24 佛教","zy740.30 心理语言学","zy750.24 中国古代文学史","zy760.30 舞蹈","zy770.30 中国古代史","zy780.50 外国考古","zy790.19 经济地理学","zy810.99 政治学其他学科","zy820.99 法学其他学科","zy830.35 战术学","zy840.24 数理社会学","zy850.50 文化人类学与民俗学","zy860.50 广播与电视","zy870.50 博物馆学","zy880.24 教育心理学","zy890.30 运动心理学","zy910.30 经济统计学"]
["zy110.27 几何学","zy120.60 系统工程","zy130.35 爆炸力学","zy140.35 电磁学","zy150.35 化学物理学","zy160.35 射电天文学","zy170.35 大地测量学","zy180.27 发育生物学","zy210.60 植物保护学","zy220.35 野生动物保护与管理",null,"zy240.35 捕捞学","zy310.27 医学遗传学","zy320.27 外科学","zy330.27 媒介生物控制学",null,"zy350.40 药效学",null,"zy410.35 工程水文学","zy420.60 测绘仪器","zy430.35 材料合成与加工工艺","zy440.35 采矿工程","zy450.35 钢铁冶金","zy460.35 机床技术",null,"zy480.60 一次能源","zy490.35 粒子加速器","zy510.60 广播与电视工程技术","zy520.60 计算机应用","zy530.27 化工系统工程","zy540.60 服装技术","zy550.60 食品工业企业管理学","zy560.35 土木建筑结构","zy570.35 水利工程施工","zy580.60 航空运输","zy590.35 飞行器控制、导航技术",null,"zy620.99 安全科学技术其他学科","zy630.35 科学学与科技管理","zy710.60 国外马克思主义研究","zy720.35 现代外国哲学","zy730.27 基督教","zy740.35 应用语言学","zy750.27 中国近代文学史","zy760.35 电影","zy770.35 中国近代史、现代史","zy780.60 专门考古","zy790.21 发展经济学",null,null,"zy830.40 军队指挥学","zy840.27 应用社会学","zy850.60 世界民族研究","zy860.60 传播学","zy870.99 图书馆、情报与文献学其他","zy880.27 教育心理学","zy890.35 运动生物化学","zy910.35 科学技术统计学"]
["zy110.31 拓扑学","zy120.99 信息科学与系统科学其他学科","zy130.40 物理力学","zy140.40 无线电物理","zy150.40 高分子物理","zy160.40 空间天文学","zy170.40 地图学","zy180.31 遗传学","zy210.70 农业工程","zy220.40 防护林学",null,"zy240.40 水产品贮藏与加工","zy310.31 放射医学","zy320.31 妇产科学","zy330.31 环境医学",null,"zy350.45 药物管理学",null,"zy410.40 工程仿生学","zy420.99 测绘科学技术其他学科","zy430.40 金属材料","zy440.40 选矿工程","zy450.40 有色金属冶金","zy460.40 仪器仪表技术",null,"zy480.70 二次能源","zy490.40 裂变堆工程技术","zy510.70 雷达工程","zy520.99 计算机科学技术其他学科","zy530.31 化工机械与设备","zy540.70 纺织机械与设备","zy550.99 食品科学技术其他学科","zy560.40 土木建筑工程设计","zy570.40 水处理","zy580.70 交通运输系统工程","zy590.40 航空、航天材料",null,null,"zy630.40 企业管理","zy710.99 马克思主义其他学科","zy720.40 逻辑学","zy730.31 伊斯兰教","zy740.40 汉语研究","zy750.31 中国现代文学史","zy760.40 广播电视文艺","zy770.40 世界通史","zy780.99 考古学其他学科","zy790.23 生产力经济学",null,null,"zy830.45 军制学","zy840.31 比较社会学","zy850.99 民族学其他学科","zy860.99 新闻学与传播学其他学科",null,"zy880.31 教育经济学","zy890.40 体育保健学","zy910.40 社会统计学"]
["zy110.34 数学分析",null,"zy130.45 统计力学","zy140.45 电子物理学","zy150.45 高分子化学","zy160.45 天体深化学","zy170.45 地理学","zy180.34 放射生物学","zy210.99 农学其他学科","zy220.45 经济林学",null,"zy240.45 水产工程学","zy310.34 人体免疫学","zy320.34 儿科学","zy330.34 职业病学",null,"zy350.50 药物统计学",null,"zy410.45 工程心理学",null,"zy430.45 无机非金属材料","zy440.45 钻井工程","zy450.45 轧制","zy460.45 流体传动与控制",null,"zy480.80 能源系统工程","zy490.45 核聚变工程技术","zy510.80 自动控制技术",null,"zy530.34 无机化学工程","zy540.99 纺织科学技术其他学科",null,"zy560.45 土木建筑工程施工","zy570.45 河流泥沙工程学","zy580.80 交通运输安全工程","zy590.45 飞行器制造技术",null,null,"zy630.45 行政管理",null,"zy720.45 伦理学","zy730.34 道教","zy740.45 中国少数民族语言文字","zy750.34 中国各体文学","zy760.45 美术","zy770.45 亚洲史",null,"zy790.25 经济思想史",null,null,"zy830.50 军队政治工作学","zy840.34 社会地理学",{"$nulls":3},"zy880.34 教育管理学","zy890.45 运动训练学","zy910.45 人口统计学"]
["zy110.37 非标准分析",null,"zy130.50 应用力学","zy140.50 凝聚态物理学","zy150.50 核化学","zy160.50 星系动力学","zy170.50 地质学","zy180.41 生物进化论",null,"zy220.50 园林学",null,"zy240.50 水产资源学","zy310.37 医学寄生虫学","zy320.37 眼科学","zy330.37 地方病学",null,"zy350.99 药学其他学科",null,"zy410.50 标准化科学技术",null,"zy430.50 有机高分子材料","zy440.50 油气田井开发工程","zy450.50 冶金机械及自动化","zy460.50 机械制造自动化",null,"zy480.99 能源科学技术其他学科","zy490.50 核动力工程技术","zy510.99 电子、通信与自动控制技术其他学科",null,"zy530.37 有机化学工程",null,null,"zy560.50 土木工程机械与设备","zy570.50 海洋工程","zy580.99 交通运输工程其他学科","zy590.50 飞行器试验技术",null,null,"zy630.50 管理工程",null,"zy720.50 美学","zy730.37 印度教","zy740.50 外国语言","zy750.37 中国民间文学","zy760.50 工艺美术","zy770.50 非洲史",null,"zy790.27 经济史",null,null,"zy830.55 军事后勤学","zy840.37 文化社会学",{"$nulls":3},"zy880.37 比较教育学","zy890.50 体育教育学","zy910.50 环境与生态统计学"]
["zy110.41 函数论",null,"zy130.99 力学其他学科","zy140.55 等离子体物理学","zy150.55 应用化学","zy160.55 恒星与银河系","zy170.55 水文学","zy180.44 生态学",null,"zy220.55 林业工程",null,"zy240.55 水产经济学","zy310.41 医学微生物学","zy320.41 耳鼻咽喉科学","zy330.41 社会医学",{"$nulls":3},"zy410.55 计量学",null,"zy430.55 复合材料","zy440.55 石油、天然气储存与运输工程","zy450.99 冶金工程技术其他学科","zy460.55 专用机械工程",null,null,"zy490.55 同位素技术",null,null,"zy530.41 电化学工程",null,null,"zy560.55 市政工程","zy570.55 环境水利",null,"zy590.55 飞行器发射、飞行技术",null,null,"zy630.55 人力资源开发与管理",null,"zy720.99 哲学其他学科","zy730.41 犹太教","zy740.99 语言学其他学科","zy750.41 中国儿童文学","zy760.55 书法","zy770.55 美洲史",null,"zy790.29 世界经济学",null,null,"zy830.60 军事地学","zy840.41 历史社会学",{"$nulls":3},"zy880.41 教育技术学","zy890.55 武术理论与方法","zy910.55 国际统计学"]
["zy110.44 常微分方程",null,null,"zy140.60 原子分子物理学","zy150.99 化学其他学科","zy160.60 太阳与太阳系","zy170.60 海洋科学","zy180.47 神经生物学",null,"zy220.60 森林统计学",null,"zy240.99 水产学其他学科","zy310.44 病理学","zy320.44 口腔医学","zy330.44 卫生检验学",{"$nulls":3},"zy410.60 工程图学",null,"zy430.99 材料科学其他学科","zy440.60 矿山机械工程",null,"zy460.99 机械工程其他学科",null,null,"zy490.60 核爆炸工程",null,null,"zy530.44 高聚物工程",null,null,"zy560.60 建筑经济学","zy570.60 水利管理",null,"zy590.60 航天地面设施、技术保障",null,null,"zy630.60 未来学",null,null,"zy730.44 袄教",null,"zy750.44 中国少数民族文学","zy760.60 摄影","zy770.60 欧洲史",null,"zy790.31 国民经济学",null,null,"zy830.65 军事技术","zy840.44 经济社会学",{"$nulls":3},"zy880.44 军事教育学","zy890.60 体育管理学","zy910.99 统计学其他学科"]
["zy110.47 偏微分方程",null,null,"zy140.65 原子核物理学",null,"zy160.65 天体生物学","zy170.99 地球科学其他学科","zy180.51 植物学",null,"zy220.65 林业经济学",null,null,"zy310.47 药理学","zy320.47 皮肤病学","zy330.47 食品卫生学",{"$nulls":3},"zy410.65 勘查技术",null,null,"zy440.65 矿山电气工程",{"$nulls":4},"zy490.65 核安全",null,null,"zy530.47 煤化学工程",null,null,"zy560.99 土木建筑工程其他学科","zy570.65 防洪工程",null,"zy590.65 航空、航天系统工程",null,null,"zy630.99 管理学其他学科",null,null,"zy730.47 摩尼教",null,"zy750.47 世界文学史","zy760.99 艺术学其他学科","zy770.65 澳洲、大洋洲史",null,"zy790.33 管理经济学",null,null,"zy830.99 军事学其他学科","zy840.47 军事社会学",{"$nulls":3},"zy880.47 学前教育学","zy890.65 体育经济学"]
["zy110.51 动力系统",null,null,"zy140.70 高能物理学",null,"zy160.99 天文学其他学科",null,"zy180.54 昆虫学",null,"zy220.99 林学其他学科",null,null,"zy310.51 医学实验动物学","zy320.51 性医学","zy330.51 儿少卫生学",{"$nulls":3},"zy410.70 工程通用技术",null,null,"zy440.70 采矿环境工程",{"$nulls":4},"zy490.70 乏燃料后处理技术",null,null,"zy530.51 石油化学工程",{"$nulls":3},"zy570.70 水利经济学",null,"zy590.99 航空、航天科学技术其他学科",{"$nulls":5},"zy730.51 锡克教",null,"zy750.51 东方文学",null,"zy770.70 专门史",null,"zy790.35 数量经济学",{"$nulls":3},"zy840.51 社会心理学",{"$nulls":3},"zy880.51 普通教育学","zy890.99 体育科学其他学科"]
["zy110.54 积分方程",null,null,"zy140.75 计算物理学",{"$nulls":3},"zy180.57 动物学",{"$nulls":4},"zy310.54 医学心理学","zy320.54 神经病学","zy330.54 妇幼卫生学",{"$nulls":3},"zy410.75 工业工程学",null,null,"zy440.75 矿山安全",{"$nulls":4},"zy490.75 辐射防护技术",null,null,"zy530.54 精细化学工程",{"$nulls":3},"zy570.99 水利工程其他学科",{"$nulls":7},"zy730.54 耆那教",null,"zy750.54 俄国文学",null,"zy770.99 历史学其他学科",null,"zy790.37 会计学",{"$nulls":3},"zy840.54 公共关系学",{"$nulls":3},"zy880.54 高等教育学"]
["zy110.57 泛函分析",null,null,"zy140.80 应用物理学",{"$nulls":3},"zy180.61 微生物学",{"$nulls":4},"zy310.57 医学统计学","zy320.57 精神病学","zy330.57 环境卫生学",{"$nulls":3},"zy410.99 工程与技术科学基础学科其他学科",null,null,"zy440.80 矿山综合利用工程",{"$nulls":4},"zy490.80 核设施退役技术",null,null,"zy530.57 造纸技术",{"$nulls":11},"zy730.57 神道教",null,"zy750.57 英国文学",{"$nulls":3},"zy790.39 审计学",{"$nulls":3},"zy840.57 社会人类学",{"$nulls":3},"zy880.57 成人教育学"]
["zy110.61 计算数学",null,null,"zy140.99 物理学其他学科",{"$nulls":3},"zy180.64 病毒学",null,null,"zy",null,"zy310.61 生物医学工程学","zy320.61 急诊医学","zy330.61 劳动卫生学",{"$nulls":6},"zy440.99 矿山工程技术其他学科",{"$nulls":4},"zy490.85 放射性三废处理、处理技术",null,null,"zy530.61 毛皮与制革工程",{"$nulls":11},"zy730.61 中国民间宗教与民间信仰",null,"zy750.61 法国文学",{"$nulls":3},"zy790.41 技术经济学",{"$nulls":3},"zy840.61 组织社会学",{"$nulls":3},"zy880.61 职业技术教育学"]
["zy110.64 概率论",{"$nulls":6},"zy180.67 人类学",{"$nulls":4},"zy310.99 基础医学其他学科","zy320.64 核医学","zy330.64 放射卫生学",{"$nulls":11},"zy490.99 核科学技术其他学科",null,null,"zy530.64 制药工程",{"$nulls":11},"zy730.64 中国少数民族宗教",null,"zy750.64 德国文学",{"$nulls":3},"zy790.43 生态经济学",{"$nulls":3},"zy840.64 发展社会学",{"$nulls":3},"zy880.64 特殊教育学"]
["zy110.67 数理统计学",{"$nulls":6},"zy180.71 生物工程",{"$nulls":5},"zy320.67 肿瘤学","zy330.67 卫生工程学",{"$nulls":14},"zy530.67 生物化学工程",{"$nulls":11},"zy730.67 当代宗教",null,"zy750.67 意大利文学",{"$nulls":3},"zy790.45 劳动经济学",{"$nulls":3},"zy840.67 福利社会学",{"$nulls":3},"zy880.99 教育学其他学科"]
["zy110.71 应用统计数学",{"$nulls":6},"zy180.74 心理学",{"$nulls":5},"zy320.71 护理学","zy330.71 卫生经济学",{"$nulls":14},"zy530.99 化学工程其他学科",{"$nulls":11},"zy730.99 宗教学其他学科",null,"zy750.71 美国文学",{"$nulls":3},"zy790.47 城市经济学",{"$nulls":3},"zy840.71 人口学"]
["zy110.74 运筹学",{"$nulls":6},"zy180.99 生物学其他学科",{"$nulls":5},"zy320.99 临床医学其他学科","zy330.74 优生学",{"$nulls":28},"zy750.74 北欧文学",{"$nulls":3},"zy790.49 资源经济学",{"$nulls":3},"zy840.99 社会学其他学科"]
["zy110.77 组合数学",{"$nulls":13},"zy330.77 健康教育学",{"$nulls":28},"zy750.77 东欧文学",{"$nulls":3},"zy790.51 环境经济学"]
["zy110.81 离散数学",{"$nulls":13},"zy330.81 卫生管理学",{"$nulls":28},"zy750.81 拉美文学",{"$nulls":3},"zy790.53 物资经济学"]
["zy110.84 模糊数学",{"$nulls":13},"zy330.99 预防医学与卫生学其他学科",{"$nulls":28},"zy750.84 非洲文学",{"$nulls":3},"zy790.55 工业经济学"]
["zy110.87 应用数学",{"$nulls":42},"zy750.87 大洋洲文学",{"$nulls":3},"zy790.57 农村经济学"]
["zy110.99 数学其他学科",{"$nulls":42},"zy750.99 文学其他学科",{"$nulls":3},"zy790.59 农业经济学"]
[{"$nulls":47},"zy790.61 交通运输经济学"]
[{"$nulls":47},"zy790.63 商业经济学"]
[{"$nulls":47},"zy790.65 价格学"]
[{"$nulls":47},"zy790.67 旅游经济学"]
[{"$nulls":47},"zy790.69 信息经济学"]
[{"$nulls":47},"zy790.71 财政学"]
[{"$nulls":47},"zy790.73 货币银行学"]
[{"$nulls":47},"zy790.75 保险学"]
[{"$nulls":47},"zy790.77 国防经济学"]
[{"$nulls":47},"zy790.99 经济学其他学科"]

{"sheet":"指标说明-其它","index":6,"n_rows":19,"n_cols":5,"rows_kept":19}
["人才类别","性别","政治面貌","婚姻状况","行政职务"]
["基础研究人才","男","中共党员","未婚","国家级正职"]
["应用研究和技术开发人才","女","民革党员","已婚","国家级副职"]
["社会公益研究人才",null,"民盟盟员","离异","省部级正职"]
["科技管理服务人才",null,"民建会员",null,"省部级副职"]
["实验技术人才",null,"民进会员",null,"厅局级正职"]
[null,null,"农工党党员",null,"厅局级副职"]
[null,null,"致公党党员",null,"县处级正职"]
[null,null,"九三学社社员",null,"县处级副职"]
[null,null,"台盟盟员",null,"乡科级正职"]
[null,null,"无党派人士",null,"乡科级副职"]
[null,null,"普通居民",null,"巡视员"]
[{"$nulls":4},"副巡视员"]
[{"$nulls":4},"调研员"]
[{"$nulls":4},"副调研员"]
[{"$nulls":4},"主任科员"]
[{"$nulls":4},"副主任科员"]
[{"$nulls":4},"科员"]
[{"$nulls":4},"办事员"]